Cogmind - Beta 16.1 @@@ ROGUE MODE // 2026.02.15 @ 00:06:20 // Winter2019/RPGLIKE Player: badjay Result: Destroyed by G-50 Soldier with Heavy Laser Performance ------------- Evolutions (4) 2000 Regions Visited (7) 1400 Robots Destroyed (35) 175 Value Destroyed (1086) 1086 Prototype IDs (3) 60 Alien Tech Used (0) 0 Bonus (158) 158 TOTAL SCORE: 4879 Bonus ------- Follower Combat Kills 158 Cogmind --------- Core Integrity 0/600 Matter 300/300 Energy 98/100 System Corruption 0% Temperature Cool (9) Movement Flying (26) Location -6/Factory Parts ------- > --- POWER (1) -------- (None) > --- PROPULSION (4) --- Surge Thruster Surge Thruster Surge Thruster Surge Thruster > --- UTILITY (5) ------ Melee Analysis Suite Actuator Array Reaction Control System Phase Shifter Hacking Suite > --- WEAPON (3) ------- Chainsword Chainsword Chainsword > --- INVENTORY (1) ---- Melee Analysis Suite Peak State ------------ > --- POWER ------------ Light Nuclear Core > --- PROPULSION ------- Surge Thruster Surge Thruster Surge Thruster Surge Thruster > --- UTILITY ---------- Melee Analysis Suite Actuator Array Reaction Control System Phase Shifter Hacking Suite > --- WEAPON ----------- Chainsword Chainsword Chainsword > --- INVENTORY -------- (None) [Rating: 44] Favorites ----------- Power Light Nuclear Core Engine Light Ion Engine Power Core Light Nuclear Core Propulsion Surge Thruster Flight Unit Surge Thruster Utility Actuator Array Device Actuator Array Processor Melee Analysis Suite Hackware Hacking Suite Weapon Chainsword Slashing Weapon Chainsword Build | -11 -10 -10 -9 -9 -8 -7 -6 ------- Run | Yrd Mat Min Mat Min Mat Fac Fac Slots Evolved 9 | . 2 . 2 . 2 2 1 Power . | . . . . . . . . Propulsion 3 | . . . 2 . 1 . . Utility 4 | . . . . . 1 2 1 Weapon 2 | . 2 . . . . . . Parts Attached 21 | . 4 2 4 . 8 2 1 Power 2 | . . 1 . . 1 . . Engine 1 | . . 1 . . . . . Core 1 | . . . . . 1 . . Reactor . | . . . . . . . . Propulsion 7 | . 1 . 4 . 2 . . Treads . | . . . . . . . . Leg . | . . . . . . . . Wheel . | . . . . . . . . Hover . | . . . . . . . . Flight 7 | . 1 . 4 . 2 . . Utility 6 | . . 1 . . 2 2 1 Device 4 | . . 1 . . 1 1 1 Storage . | . . . . . . . . Processor 1 | . . . . . . 1 . Hackware 1 | . . . . . 1 . . Protection . | . . . . . . . . Artifact . | . . . . . . . . Weapon 6 | . 3 . . . 3 . . Energy Gun . | . . . . . . . . Energy Cannon . | . . . . . . . . Ballistic Gun . | . . . . . . . . Ballistic Cannon . | . . . . . . . . Launcher . | . . . . . . . . Special Weapon . | . . . . . . . . Impact Weapon . | . . . . . . . . Slashing Weapon 6 | . 3 . . . 3 . . Piercing Weapon . | . . . . . . . . Special Melee Weapon . | . . . . . . . . Unidentified Prototypes 1 | . . 1 . . . . . Parts Lost . | . . . . . . . . Power . | . . . . . . . . Propulsion . | . . . . . . . . Utility . | . . . . . . . . Weapon . | . . . . . . . . Highest Loss Streak . | . . . . . . . . To Critical Strikes . | . . . . . . . . Average Backups . | . . . . 1 . . 1 Power . | . . . . . . . . Propulsion . | . . . . 1 . . . Utility . | . . . . . . . 1 Weapon . | . . . . . . . . Tool/Special . | . . . . . . . . Unused Backups 1 | . . . . . . . 1 Power . | . . . . . . . . Propulsion . | . . . . . . . . Utility 1 | . . . . . . . 1 Weapon . | . . . . . . . . Tool/Special . | . . . . . . . . Average Slot Usage (%) 91 | . 8 85 100 100 99 100 100 Engine 4 | . . 10 13 12 2 . . Core 5 | . . . . . 8 8 7 Flight 31 | . 8 16 28 37 42 35 31 Device 12 | . . 7 13 12 11 9 19 Processor 2 | . . . . . . 8 7 Hackware 3 | . . . . . 2 8 7 Slashing Weapon 31 | . . 50 41 37 32 26 24 Peak Build Rating 44 | . 4 12 20 20 37 39 44 Average Rating 27 | . . 8 14 20 32 36 41 On Entrance 16 | . . 4 12 20 20 33 39 Avg Prop Armor Cover (%) . | . . . . . . . . Naked Turns 54 | . 54 . . . . . . Heaviest Build 22 | . 6 17 17 17 22 20 21 Greatest Support 26 | 3 9 9 20 20 22 22 26 Greatest Overweight (x) 1 | . . 1 1 . . . . Average Overweight (x) . | . . . . . . . . Largest Inventory Capacity 1 | . . 1 1 1 1 1 1 Average Capacity . | . . . 1 1 1 1 1 Most Carried 1 | . . 1 1 1 1 1 1 Average Carried . | . . . . 1 . . . Final Capacity 1 | . . 1 1 1 1 1 1 Final Carried 1 | . . 1 1 1 1 1 1 Class Distribution -------------------- 62% | Hacker-Sprinter 22% | Gladiator 8% | Sprinter 6% | Mutant Dominant Class ---------------- Mutant | -10/Materials Gladiator | -10/Mines Gladiator | -9/Materials Sprinter | -9/Mines Hacker-Sprinter | -8/Materials Hacker-Sprinter | -7/Factory Hacker-Sprinter | -6/Factory Resources | -11 -10 -10 -9 -9 -8 -7 -6 ----------- Run | Yrd Mat Min Mat Min Mat Fac Fac Matter Collected 450 | 200 . 60 10 40 70 40 30 Remotely . | . . . . . . . . Salvage Created 1194 | . . . . 56 506 87 545 Parts 91 | . . 6 2 1 37 10 35 Haulers Intercepted 1 | . . . . . 1 . . Recyclers Shooed . | . . . . . . . . Parts Field Recycled . | . . . . . . . . Retrieved Matter . | . . . . . . . . Parts Self-Destructed . | . . . . . . . . Prevented . | . . . . . . . . Parts Restored . | . . . . . . . . Kills | -11 -10 -10 -9 -9 -8 -7 -6 ------- Run | Yrd Mat Min Mat Min Mat Fac Fac Combat Hostiles Destroyed 24 | . . 3 1 . 9 3 8 Melee 24 | . . 3 1 . 9 3 8 Classes Destroyed 7 | . . 1 1 1 2 . 2 Hauler 1 | . . . . . 1 . . Watcher 7 | . . . . . 3 1 3 Swarmer 9 | . . 3 . . 3 3 . Grunt 10 | . . . . 1 5 . 4 Brawler 1 | . . . . . . . 1 Sentry 6 | . . . 1 . 3 . 2 Heavy 1 | . . . . . . . 1 Best Kill Streak 5 | . . 3 1 . 4 3 5 Combat Bots Only 5 | . . 3 1 . 3 3 5 Max Kills in Single Turn 1 | . . 1 1 1 1 1 1 Gunslinging . | . . . . . . . . Exploded . | . . . . . . . . Melee 1 | . . 1 1 . 1 1 1 Uniques/NPCs Destroyed . | . . . . . . . . Combat | -11 -10 -10 -9 -9 -8 -7 -6 -------- Run | Yrd Mat Min Mat Min Mat Fac Fac Hostile Shots Fired 192 | . . 20 2 6 34 17 113 Missed 95 | . . 7 1 2 17 13 55 Hits 97 | . . 13 1 4 17 4 58 Melee 3 | . . . . . . . 3 Projectile 94 | . . 13 1 4 17 4 55 Critical Strikes 5 | . . . . . . . 5 Damage Taken 1654 | . . 117 16 44 226 59 1192 Core 1407 | . . 108 12 39 196 49 1003 Absorbed by Shields . | . . . . . . . . Redirected to Core 865 | . . 26 12 17 99 34 677 Core Remaining (%) 97 | 100 . 92 . 93 100 100 . Volleys Fired . | . . . . . . . . Largest . | . . . . . . . . Hottest . | . . . . . . . . Shots Fired . | . . . . . . . . Gun . | . . . . . . . . Cannon . | . . . . . . . . Launcher . | . . . . . . . . Special . | . . . . . . . . Kinetic . | . . . . . . . . Thermal . | . . . . . . . . Explosive . | . . . . . . . . Electromagnetic . | . . . . . . . . Robot Hit Streak . | . . . . . . . . Robot Miss Streak . | . . . . . . . . Penetration Max . | . . . . . . . . Secondary Targets . | . . . . . . . . Shots Hit Robots 113 | . . 4 4 2 39 4 60 Core Hits 43 | . . 3 1 1 16 4 18 Critical Kills . | . . . . . . . . Critical Parts Destroyed . | . . . . . . . . Critical Strikes 12 | . . . . . 5 . 7 Sever 12 | . . . . . 5 . 7 Melee Attacks 138 | . . 7 7 2 45 8 69 Impact . | . . . . . . . . Slashing 138 | . . 7 7 2 45 8 69 Piercing . | . . . . . . . . Sneak Attacks 13 | . . . 2 2 8 . 1 Combat Hostiles . | . . . . . . . . Follow-up Attacks 34 | . . 2 1 1 10 1 19 Damage Inflicted 4463 | . . 102 147 96 1821 144 2153 Guns . | . . . . . . . . Cannons . | . . . . . . . . Explosions . | . . . . . . . . Melee 4463 | . . 102 147 96 1821 144 2153 Ramming . | . . . . . . . . Kinetic . | . . . . . . . . Thermal . | . . . . . . . . Explosive . | . . . . . . . . Electromagnetic . | . . . . . . . . Impact . | . . . . . . . . Slashing 4463 | . . 102 147 96 1821 144 2153 Piercing . | . . . . . . . . Highest Corruption . | . . . . . . . . Average Corruption . | . . . . . . . . Corruption Purged . | . . . . . . . . Corruption Blocked . | . . . . . . . . Overload Shots . | . . . . . . . . Overflow Damage 50 | . . . . 6 27 . 17 Projectiles . | . . . . . . . . Explosions . | . . . . . . . . Melee 50 | . . . . 6 27 . 17 Knockbacks . | . . . . . . . . Impact . | . . . . . . . . Kinetic . | . . . . . . . . Secondary . | . . . . . . . . Self-Inflicted Damage . | . . . . . . . . Shots . | . . . . . . . . Rammed . | . . . . . . . . Targets Rammed . | . . . . . . . . Kicked . | . . . . . . . . Crushed . | . . . . . . . . Highest Temperature 106 | . . . . 15 24 106 68 Average Temperature 26 | . . . . 11 8 47 21 Received Heat Transfer 413 | . . 27 . 20 54 . 312 Siege Activations . | . . . . . . . . Martial Activations . | . . . . . . . . Shielding Activations . | . . . . . . . . Robots Disrupted . | . . . . . . . . Combat Hostiles . | . . . . . . . . Robots Corrupted . | . . . . . . . . Combat Hostiles . | . . . . . . . . Parts Fried . | . . . . . . . . Impact Corruptions . | . . . . . . . . Robots Melted . | . . . . . . . . Combat Hostiles . | . . . . . . . . Parts Melted . | . . . . . . . . Heat Transferred . | . . . . . . . . Parts Sabotaged . | . . . . . . . . Parts Stolen . | . . . . . . . . Parts Stripped . | . . . . . . . . Power Chain Reactions . | . . . . . . . . Alert | -11 -10 -10 -9 -9 -8 -7 -6 ------- Run | Yrd Mat Min Mat Min Mat Fac Fac Maximum Alert Level 1 | . . . . . . 1 1 Low Security (%) 92 | 100 100 100 100 100 100 81 80 Level 1 7 | . . . . . . 18 19 Level 2 . | . . . . . . . . Level 3 . | . . . . . . . . Level 4 . | . . . . . . . . Level 5 . | . . . . . . . . High Security . | . . . . . . . . Max Security . | . . . . . . . . Peak Influence 336 | . 30 97 133 47 157 213 336 Initial 99 | . . 7 29 47 . 66 99 Average 90 | . 9 54 75 27 73 115 156 Influence Increases 1360 | . 48 147 174 . 377 207 407 Destroy 0b10 Robot/C 600 | . . 100 60 . 220 60 160 Destroy 0b10 Robot/NC 45 | . . . 5 . 20 5 15 Destroy Leader 138 | . . 10 32 . 38 12 46 Allied During Kill 30 | . . 7 7 . 16 . . Successful Hack 79 | . 3 . 23 . 22 10 21 Disable Machine 45 | . . . . . . . 45 Destroy Structure 3 | . . . 2 . 1 . . Partial Spotted 150 | . 45 . . . 15 60 30 Lose Combat Pursuer 270 | . . 30 45 . 45 60 90 Influence Decreases 1024 | . 28 90 128 123 230 151 274 Entered New Map 322 | . . 13 48 76 . 81 104 Time Decay 602 | . 28 77 80 27 150 70 170 Lost Ally 100 | . . . . 20 80 . . Squads Dispatched 9 | . 2 . 1 . 2 . 4 Investigation 1 | . . . . . . . 1 Extermination 1 | . . . . . . . 1 Reinforcement 7 | . 2 . 1 . 2 . 2 Assault . | . . . . . . . . Garrison . | . . . . . . . . Intercept . | . . . . . . . . Searches Triggered . | . . . . . . . . Construction Impeded . | . . . . . . . . Haulers Reinforced . | . . . . . . . . Active Scanning Responses . | . . . . . . . . Cargo Convoy Interrupts . | . . . . . . . . Stealth | -11 -10 -10 -9 -9 -8 -7 -6 --------- Run | Yrd Mat Min Mat Min Mat Fac Fac Distress Signals 6 | . 1 . 2 . 3 . . Communications Jammed . | . . . . . . . . Distress Signals . | . . . . . . . . Times Spotted 104 | . 3 10 11 25 30 8 17 Peak Tracking Total 21 | . 2 3 4 21 8 4 8 Tactical Retreats 11 | . . 1 2 1 2 1 4 Traps | -11 -10 -10 -9 -9 -8 -7 -6 ------- Run | Yrd Mat Min Mat Min Mat Fac Fac Traps Triggered 1 | . . . . . . . 1 Indirectly . | . . . . . . . . Trap Hack Attempts . | . . . . . . . . Triggered . | . . . . . . . . Disarmed . | . . . . . . . . Reprogrammed . | . . . . . . . . Reused . | . . . . . . . . Traps Extracted . | . . . . . . . . Installed . | . . . . . . . . Triggered . | . . . . . . . . Machines | -11 -10 -10 -9 -9 -8 -7 -6 ---------- Run | Yrd Mat Min Mat Min Mat Fac Fac Machines Disabled 3 | . . . . . . . 3 Max in Single Turn 1 | . . . . . . . 1 Garrison Access 2 | . . . . . 1 1 . Machines Repaired . | . . . . . . . . Machines Dismantled . | . . . . . . . . Machines Sabotaged . | . . . . . . . . Overloaded Fab Kills . | . . . . . . . . Hacking | -11 -10 -10 -9 -9 -8 -7 -6 --------- Run | Yrd Mat Min Mat Min Mat Fac Fac Machines Accessed 25 | . 4 1 4 . 6 3 7 Terminals 17 | . 4 . 4 . 4 2 3 Fabricators 1 | . . . . . . . 1 Repair Stations 1 | . . . . . . . 1 Recycling Units 1 | . . . . . . . 1 Scanalyzers 2 | . . . . . 1 . 1 Garrison Access 2 | . . . . . 1 1 . Total Hacks 103 | . 18 1 19 . 29 7 29 Successful 70 | . 12 1 10 . 21 5 21 Failed 32 | . 6 . 9 . 7 2 8 Catastrophic 2 | . . . . . 1 . 1 Database Lockouts 1 | . . . . . 1 . . Manual 59 | . 14 . 11 . 19 3 12 Terminals 80 | . 18 . 19 . 23 4 16 Fabricators 4 | . . . . . . . 4 Repair Stations 1 | . . . . . . . 1 Recycling Units 2 | . . . . . . . 2 Scanalyzers 10 | . . . . . 4 . 6 Garrison Access 5 | . . . . . 2 3 . Terminal Hacks 31 | . 7 1 6 . 9 2 6 Prototype ID Bank 1 | . . . 1 . . . . Open Door 1 | . . 1 . . . . . Open DSF 1 | . . . . . . 1 . Branch Access Points 4 | . 2 . 1 . . . 1 Emergency Access Points 2 | . . . . . 1 . 1 Machine Index 1 | . . . . . . . 1 Terminal Index 4 | . 1 . 2 . 1 . . Alert Level 3 | . . . 1 . . 1 1 Locate Traps 1 | . . . . . . . 1 Dispatch Records 1 | . . . . . 1 . . Hauler Manifests 2 | . . . 1 . 1 . . Registered Components 3 | . 1 . . . 2 . . Registered Prototypes 2 | . 1 . . . 1 . . Zone Layout 5 | . 2 . . . 2 . 1 Fabricator Hacks 1 | . . . . . . . 1 Network Status 1 | . . . . . . . 1 Repair Station Hacks . | . . . . . . . . Recycling Unit Hacks . | . . . . . . . . Scanalyzer 8 | . . . . . 3 . 5 Insert Component 3 | . . . . . 1 . 2 Analyze 2 | . . . . . 1 . 1 Retrieve Study 3 | . . . . . 1 . 2 Garrison Access Hacks 2 | . . . . . 1 1 . Seal Access 2 | . . . . . 1 1 . Unauthorized Hacks 28 | . 5 . 4 . 8 2 9 Terminals 24 | . 5 . 4 . 8 1 6 Track 5 | . 1 . . . 3 . 1 Assimilate 1 | . 1 . . . . . . Botnet 14 | . 3 . 4 . 3 1 3 Disrupt 2 | . . . . . 1 . 1 Operators 2 | . . . . . 1 . 1 Fabricators 1 | . . . . . . . 1 Haulers 1 | . . . . . . . 1 Repair Stations . | . . . . . . . . Recycling Units 1 | . . . . . . . 1 Monitor 1 | . . . . . . . 1 Scanalyzers 1 | . . . . . . . 1 Researchers 1 | . . . . . . . 1 Garrison Access 1 | . . . . . . 1 . Watchers 1 | . . . . . . 1 . Data Cores Recovered . | . . . . . . . . Used . | . . . . . . . . Hacking Detections 19 | . 4 . 4 . 5 1 5 Full Trace Events . | . . . . . . . . Feedback Events . | . . . . . . . . Feedback Blocked . | . . . . . . . . Robot Schematics Acquired . | . . . . . . . . Robots Built . | . . . . . . . . Authchips . | . . . . . . . . Time . | . . . . . . . . Total Robot Build Rating . | . . . . . . . . Part Schematics Acquired 2 | . . . . . 1 . 1 Parts Built . | . . . . . . . . Authchips . | . . . . . . . . Time . | . . . . . . . . Total Part Build Rating . | . . . . . . . . Part Studies Acquired 3 | . . . . . 1 . 2 Parts Repaired . | . . . . . . . . Time . | . . . . . . . . Parts Recycled . | . . . . . . . . Recycled Matter . | . . . . . . . . Retrieved Matter . | . . . . . . . . Retrieved Components . | . . . . . . . . Parts Scanalyzed 2 | . . . . . 1 . 1 Part Schematics Acquired 2 | . . . . . 1 . 1 Parts Damaged . | . . . . . . . . Bothacking | -11 -10 -10 -9 -9 -8 -7 -6 ------------ Run | Yrd Mat Min Mat Min Mat Fac Fac Used RIF Installer . | . . . . . . . . Robots Hacked . | . . . . . . . . Non-combat . | . . . . . . . . Combat . | . . . . . . . . Robot Hacks Applied . | . . . . . . . . Relay Couplers Released . | . . . . . . . . Fabnet Peak Effective % . | . . . . . . . . Robots Rewired . | . . . . . . . . Allies Hacked . | . . . . . . . . Hacks Repelled . | . . . . . . . . Allies | -11 -10 -10 -9 -9 -8 -7 -6 -------- Run | Yrd Mat Min Mat Min Mat Fac Fac Total Allies 9 | . 1 3 . 2 3 . . Largest Group 2 | . 1 2 . 1 1 . . Highest-Rated Group 29 | . 10 24 . 13 29 . . Highest-Rated Ally 29 | . 10 16 . 13 29 . . Total Orders . | . . . . . . . . Ally Attacks 85 | . . 23 25 12 25 . . Total Damage 416 | . . 165 106 45 100 . . Kills 8 | . . 3 3 . 2 . . Allies Corrupted . | . . . . . . . . Allies Melted . | . . . . . . . . Intel | -11 -10 -10 -9 -9 -8 -7 -6 ------- Run | Yrd Mat Min Mat Min Mat Fac Fac Active Infowar (turns) . | . . . . . . . . Robot Analysis Total . | . . . . . . . . Derelict Logs Recovered 2 | . . 1 . 1 . . . Drone Launches 77 | . . 18 25 11 23 . . Drone Recoveries 74 | . . 18 25 11 20 . . Exploration | -11 -10 -10 -9 -9 -8 -7 -6 ------------- Run | Yrd Mat Min Mat Min Mat Fac Fac Turns Passed 1328 | 12 86 163 165 67 333 155 347 Spaces Moved 2708 | 24 169 189 317 199 685 489 636 Core 130 | 24 106 . . . . . . Treads . | . . . . . . . . Legs . | . . . . . . . . Wheels . | . . . . . . . . Hover . | . . . . . . . . Flight 2578 | . 63 189 317 199 685 489 636 Fastest Speed 14 | 50 40 40 29 26 26 26 14 Average Speed 30 | 50 46 54 36 28 26 26 25 Slowest Speed 120 | 50 50 120 120 29 29 26 29 Overloaded Moves 30 | . . . . 1 . . 29 Propulsion Burnouts . | . . . . . . . . Robots Hopped 15 | . 1 1 4 4 3 . 2 Potential Cave-ins . | . . . . . . . . Cave-ins Triggered . | . . . . . . . . Exploration Rate (%) 36 | 3 41 54 41 60 59 13 19 Regions Visited 7 Branch Regions 2 Pre-discovered Areas 2 | . . . . 2 . . . Known Exits Taken 2 | . 1 . 1 . . . . Unknown Exits Taken 5 | 1 . 1 . 1 1 1 . Scrap Searched 1 | . . 1 . . . . . Spaces Dug 2 | . . . 2 . . . . Terrain Destroyed 2 | . . . 2 . . . . Melee 2 | . . . 2 . . . . Projectile . | . . . . . . . . AOE . | . . . . . . . . Terrain Rammed . | . . . . . . . . Walls Destroyed . | . . . . . . . . Machines Disabled . | . . . . . . . . Actions | -11 -10 -10 -9 -9 -8 -7 -6 --------- Run | Yrd Mat Min Mat Min Mat Fac Fac Total 3027 | 23 173 237 352 201 785 509 747 Wait 146 | . 2 39 19 6 26 7 47 Move 2673 | 23 166 186 310 190 678 488 632 Hop 13 | . 1 1 2 4 3 . 2 Pick Up 11 | . . 1 1 . 4 3 2 Fast Attach 13 | . 4 2 1 . 4 1 1 Attach 5 | . . . 1 . 2 1 1 Detach . | . . . . . . . . Swap 7 | . . . 3 . 4 . . Drop 15 | . . . 3 . 9 2 1 Fire . | . . . . . . . . Melee 90 | . . 4 5 1 32 4 44 Ram . | . . . . . . . . Kick . | . . . . . . . . Crush . | . . . . . . . . Escape Stasis . | . . . . . . . . Rewire . | . . . . . . . . Trap . | . . . . . . . . Miscellaneous 54 | . . 4 7 . 23 3 17 Route ------- -11/Scrapyard -10/Materials (discovered 2 exits: *Min x2) -10/Mines -9/Materials (discovered 4 exits: *Mat / *Min x2 / Sto) -9/Mines (discovered 2 exits: *Mat x2) -8/Materials -7/Factory -6/Factory (discovered 4 exits: *Low x2 / Ext x2) History --------- Turn | Location | Event 5 | -11/Scrapyard | Discovered new exit (range 15) 13 | -11/Scrapyard | Entered Materials 87 | -10/Materials | Identified exit to Mines 93 | -10/Materials | Upgraded with Weapon slot (x2) 99 | -10/Materials | Entered Mines 109 | -10/Mines | Learned 2 Materials zone layouts 183 | -10/Mines | Found the Drone Emporium 184 | -10/Mines | Found Prototype Device 184 | -10/Mines | Identified Splice Drone Bay 255 | -10/Mines | Discovered new exit (range 6) 262 | -10/Mines | Entered Materials 264 | -9/Materials | Reached level 2 264 | -9/Materials | Upgraded with Propulsion slot (x1) 338 | -9/Materials | Identified exit to Mines 338 | -9/Materials | Identified exit to Storage 340 | -9/Materials | Reached level 3 393 | -9/Materials | Upgraded with Propulsion slot (x1) 423 | -9/Materials | Discovered new exit (range 16) 427 | -9/Materials | Entered Mines 433 | -9/Mines | Discovered new exit (range 8) 448 | -9/Mines | Learned location of Storage (-9) 451 | -9/Mines | Assembled infested the area 465 | -9/Mines | Learned location of Zion (-6) 487 | -9/Mines | Discovered new exit (range 15) 494 | -9/Mines | Entered Materials 496 | -8/Materials | Reached level 4 505 | -8/Materials | Upgraded with Propulsion slot (x1) 629 | -8/Materials | Lost 3 allies 684 | -8/Materials | Reached level 5 702 | -8/Materials | Upgraded with Utility slot (x1) 799 | -8/Materials | Build established: Hacker-Sprinter 818 | -8/Materials | Central database locked down 821 | -8/Materials | Discovered new exit (range 16) 827 | -8/Materials | Entered Factory 829 | -7/Factory | Reached level 6 829 | -7/Factory | Upgraded with Utility slot (x1) 873 | -7/Factory | Identified exit to DSF 966 | -7/Factory | Upgraded with Utility slot (x1) 974 | -7/Factory | Discovered new exit (range 9) 982 | -7/Factory | Entered another Factory area 984 | -6/Factory | Reached level 7 1055 | -6/Factory | Core integrity fell below 50% 1108 | -6/Factory | Discovered new exit (range 10) 1167 | -6/Factory | Upgraded with Utility slot (x1) 1228 | -6/Factory | Reached level 8 1273 | -6/Factory | Identified exit to Lower Caves 1273 | -6/Factory | Identified exit to Extension 1316 | -6/Factory | Core integrity fell below 20% 1329 | -6/Factory | Destroyed by G-50 Soldier with Heavy Laser Last Messages --------------- 01311_ R-10 Processor collects Mace. 01313_ Surge Thruster+ severed. 01313_ K-01 Serf collects debris. 01313_ Acquired Surge Thruster+. 01316_ R-10 Processor collects Adv. Heat Sink. 01317_ K-01 Serf collects debris. 01319_ G-50 Soldier destroyed. 01320_ Acquired 20 matter. 01320_ K-01 Serf collects debris. 01320_ Critical hit (Burn: +37). 01322_ G-50 Soldier destroyed. 01322_ Chainsword+ follow-up attack on G-50 Soldier. 01322_ G-50 Soldier Lgt. Angular Momentum Engine severed. 01323_ K-01 Serf collects debris. 01327_ Chainsword+ follow-up attack on L-41 Fighter. 01327_ Critical hit (Burn: +37). 01328_ Lgt. Nuclear Core+ severed. Map ----- +----------------------------------------------------+ | #????????????????????????????????????????????????? | | #????????????????????????????????????????????????? | | #????????????????????????????????????????????????? | | #????????????????????????????????????????????????? | | #????????????????????????????????????????????????? | | #????????????????????????????????????????????????? | | ?????????????????????????????????????????????????? | | ?????????????????????????????????????????????????? | | #+####### ????????????????????????????????????? | | ???????????????????????????????????? | | ?????????????????????????????+?????? | | ???????????????????????????????????? | | #+####### ????????????????????????????????????? | | ???????????? # #?????????# ??????? | | ????????????########+##########????# ??????? | | ????????????#?# #?# #######+#####??????? | | ??????????? #?# ### ###??????? | | ??????????? #?# / ??????? | | ??????????# #?# """ ### R ??????? | | ??????????# #?# """ #?# ####### ??????? | | ??????????# #?# """ #?## ##???### ??????? | | ??????????# #?# #??# #????#"" ??????? | | ??????????# #?# """ #??# #????#"" ??????? | | ??????????# #?# """ #??# #????#"Y ??????? | | ??????????# #?# """ ####[ ###??#"" ??????? | | ????????### ### ##=@= #??#"" ??????? | | ????????# ##+#######*=l% ###### ??????? | | ######### ut ** # # ??????? | | =g= T # # ??????? | | ######### ! %* # # ??????? | | ????????# ##+#######[ k # # ??????? | | ???????####+### ## % % # # ??????? | | ???????# # [ ### %= ## "" + ??????? | | ???????# !# #?# ## T" # ??????? | | ???????# """ # """"" #?# ## "" # ??????? | | ???????# """ # """"" #?# ## #######??????? | | ???????# """ # """ #?# ####+########??????? | | ???????# # #?# # ???A??? | | ???????######## """"" #?#^^^^^# """""""??????? | | ??????????????# """"" #?# # """""""??????? | | ??????????????# """ #?# # """""""??????? | | ??????????????# #?# # """""""??????? | | ????????????############# + ??????? | | ???????????? # #############??????? | | ????????????????????????# #??????????????????? | | ????????????????????????# #??????????????????? | | ????????????????????????# #??????????????????? | | ????????????????????????? ???????????????????? | | ?????????????????????????????????????????????????? | | ?????????????????????????????????????????????????? | +----------------------------------------------------+ Best States ------------- Heat Dissipation 31 Energy Generation 20 Energy Capacity 160 Matter Stores 300 Matter Capacity 300 Sight Range 16 Terrain Scan Density 10 Phase Shifting 5 Evasion (%) 77 Melee Accuracy 5 Offensive Hacking 25 Defensive Hacking 10 Item Schematics ----------------- Chainsword | -8/Materials | Scanalyzed Melee Analysis Suite | -6/Factory | Scanalyzed Robot Schematics ------------------ None Fabricated ------------ Nothing Repaired ---------- Nothing Studied --------- Lgt. Nuclear Core | -8/Materials | Hacked Surge Thruster | -6/Factory | Hacked Chainsword | -6/Factory | Hacked Alien Tech Used ----------------- None Achievements -------------- Factory Defaults Item+ Satisfying Throw Away The Key Challenges ------------ None RPGLIKE | -11 -10 -10 -9 -9 -8 -7 -6 --------- Run | Yrd Mat Min Mat Min Mat Fac Fac Levels Raised 7 | . . . 2 . 2 1 2 XP Earned 14241 | 3000 . 1104 2072 500 2860 1890 2815 XP Spent 12100 | . 2200 750 1900 . 3600 1950 1700 Upgrades 23 | . 6 3 3 . 6 3 2 Propulsion Slot 3 | . . . 2 . 1 . . Utility Slot 4 | . . . . . 1 2 1 Weapon Slot 2 | . 2 . . . . . . Heat Dissipation 1 | . . . . . . 1 . Energy Generation 1 | . . . . . . . 1 Mass Support 2 | . 1 . 1 . . . . Inventory Capacity 1 | . . 1 . . . . . Melee Accuracy 4 | . . 2 . . 2 . . Hack Attack % 3 | . 2 . . . 1 . . Hack Defense % 2 | . 1 . . . 1 . . Protomatter Created 424 | . . 37 50 . 151 17 169 Integrity Restored 1021 | . . 69 149 . 364 49 390 Core 794 | . . 63 57 . 235 49 390 Parts 227 | . . 6 92 . 129 . . Protomatter Decayed 113 | . . 14 42 . 57 . . Game ------ Seed ShiftFluxTracker Manual? 0 Play Time 00:44:58 Cumulative 173.2 hours Start 2026.02.14 @ 23:24:50 End 2026.02.15 @ 00:06:20 Sessions 1 Manual Loads 0 Difficulty Rogue Special Mode Winter2019/RPGLIKE Game No. 184 Rogue 184 Adventurer 0 Explorer 0 Win Type - Total 13 Types 11/0/0/1/0/0/1/0/0/0 Lore% 42 Gallery% 53 Achievement% 40 Wizard Run 0 Options --------- Layout 1 ASCII 0 Keyboard 0 Movement Numpad Keybinds 0 Fullscreen 1 Font 24/Smallcaps Map View 50x35 Zoom Use 0% Tactical HUD 1 Map Filters NONE Filters NONE Steam 1 RUN: 7c8b5c52-5d6f-4e81-ac96-78818370eef6